lending/lending_fUSD_20250425
["ID","MTS","AMOUNT","RATE_DAILY","PERIOD"]
[358912696,1745544965692,-500.0,0.00049315,30]
[358912697,1745544965719,-500.0,0.00049315,30]
[358912698,1745544965746,-500.0,0.00049315,30]
[358912699,1745544965771,-500.0,0.00049315,30]
[358912700,1745544965800,-500.0,0.00049315,30]
[358912701,1745544965826,-500.0,0.00049315,30]
[358912702,1745544965852,-500.0,0.00049315,30]
[358912703,1745544965878,-500.0,0.00049315,30]
[358912704,1745544965904,-500.0,0.00049315,30]
[358912705,1745544965930,-500.0,0.00049315,30]
[358912706,1745544965956,-500.0,0.00049315,30]
[358912707,1745544965982,-500.0,0.00049315,30]
[358912708,1745544966011,-500.0,0.00049315,30]
[358912709,1745544966037,-500.0,0.00049315,30]
[358912710,1745544966063,-500.0,0.00049315,30]
[358912711,1745544966089,-332.66754429,0.00049315,30]
[358912712,1745544966114,-208.41224911,0.00049315,30]
[358912713,1745544966142,-518.09894672,0.00049315,30]
[358912714,1745544966169,-500.0,0.00049315,30]
[358912715,1745544966195,-500.0,0.00049315,30]
[358912716,1745544966221,-845.91,0.00049315,30]
[358912717,1745544966249,-500.0,0.00049315,30]
[358912718,1745544966276,-547.76451064,0.00049315,30]
[358912719,1745544966302,-534.09,0.00049315,30]
[358912720,1745544966331,-500.0,0.00049315,30]
[358912721,1745544966356,-500.0,0.00049315,30]
[358912722,1745544966382,-500.0,0.00049315,30]
[358912723,1745544966407,-573.37575734,0.00049315,30]
[358912724,1745544966432,-602.71512978,0.00049315,30]
[358912725,1745544966458,-500.0,0.00049315,30]
[358912726,1745544966483,-500.0,0.00049315,30]
[358912727,1745544966509,-500.0,0.00049315,30]
[358912728,1745544966536,-500.0,0.00049315,30]
[358912729,1745544966561,-500.0,0.00049315,30]
[358912730,1745544966586,-500.0,0.00049315,30]
[358912731,1745544966613,-500.0,0.00049315,30]
[358912732,1745544966639,-500.0,0.00049315,30]
[358912733,1745544966665,-500.0,0.00049315,30]
[358912734,1745544966692,-500.0,0.00049315,30]
[358912735,1745544966717,-500.0,0.00049315,30]
[358912736,1745544966742,-500.0,0.00049315,30]
[358912737,1745544966768,-500.0,0.00049315,30]
[358912738,1745544966797,-500.0,0.00049315,30]
[358912739,1745544966823,-500.0,0.00049315,30]
[358912740,1745544966853,-500.0,0.00049315,30]
[358912741,1745544966881,-500.0,0.00049315,30]
[358912742,1745544966906,-500.0,0.00049315,30]
[358912743,1745544966932,-500.0,0.00049315,30]
[358912744,1745544966960,-500.0,0.00049315,30]
[358912745,1745544966990,-500.0,0.00049315,30]
[358912746,1745544967017,-500.0,0.00049315,30]
[358912747,1745544967045,-498.02399997,0.00049315,30]
[358912748,1745544967072,-500.0,0.00049315,30]
[358912749,1745544967099,-500.0,0.00049315,30]
[358912750,1745544967124,-527.92469669,0.00049315,30]
[358912751,1745544967151,-500.0,0.00049315,30]
[358912752,1745544967182,-1011.36,0.00049315,30]
[358912753,1745544967210,-694.96,0.00049315,30]
[358912754,1745544967236,-500.0,0.00049315,30]
[358912755,1745544967263,-500.0,0.00049315,30]
[358912756,1745544967290,-500.0,0.00049315,30]
[358912757,1745544967316,-500.0,0.00049315,30]
[358912758,1745544967342,-500.0,0.00049315,30]
[358912759,1745544967368,-500.0,0.00049315,30]
[358912760,1745544967394,-500.0,0.00049315,30]
[358912761,1745544967435,-450.16470154,0.00049315,30]
[358912762,1745544967462,-500.0,0.00049315,30]
[358912763,1745544967746,-500.0,0.00049315,30]
[358912764,1745544967773,-500.0,0.00049315,30]
[358912765,1745544967808,-500.0,0.00049315,30]
[358912766,1745544967835,-639.02304189,0.00049315,30]
[358912767,1745544967863,-500.0,0.00049315,30]
[358912768,1745544967891,-448.88920861,0.00049315,30]
[358912769,1745544967917,-500.0,0.00049315,30]
[358912770,1745544967944,-500.0,0.00049315,30]
[358912771,1745544967971,-500.0,0.00049315,30]
[358912772,1745544967996,-500.0,0.00049315,30]
[358912773,1745544968022,-603.01,0.00049315,30]
[358912774,1745544968049,-500.0,0.00049315,30]
[358912775,1745544968076,-1176.98,0.00049315,30]
[358912776,1745544968103,-500.0,0.00049315,30]
[358912777,1745544968130,-500.0,0.00049315,30]
[358912778,1745544968157,-500.0,0.00049315,30]
[358912779,1745544968185,-500.0,0.00049315,30]
[358912780,1745544968213,-463.4835524,0.00049315,30]
[358912781,1745544968240,-1160.03,0.00049315,30]
[358912782,1745544968266,-500.0,0.00049315,30]
[358912783,1745544968293,-1571.33,0.00049315,30]
[358912784,1745544968320,-500.0,0.00049315,30]
[358912785,1745544968353,-500.0,0.00049315,30]
[358912786,1745544968379,-516.69561313,0.00049315,30]
[358912787,1745544968406,-500.0,0.00049315,30]
[358912788,1745544968434,-500.0,0.00049315,30]
[358912789,1745544968461,-500.0,0.00049315,30]
[358912790,1745544968489,-560.11,0.00049315,30]
[358912791,1745544968516,-500.0,0.00049315,30]
[358912792,1745544968544,-500.0,0.00049315,30]
[358912793,1745544968571,-500.0,0.00049315,30]
[358912794,1745544968599,-868.05,0.00049315,30]
[358912795,1745544968627,-1962.8,0.00049315,30]
[358912796,1745544968654,-519.75856122,0.00049315,30]
[358912797,1745544968682,-542.83,0.00049315,30]
[358912798,1745544968708,-500.0,0.00049315,30]
[358912799,1745544968735,-500.0,0.00049315,30]
[358912800,1745544968762,-1264.46,0.00049315,30]
[358912801,1745544968789,-500.0,0.00049315,30]
[358912802,1745544968820,-1984.33,0.00049315,30]
[358912803,1745544968848,-859.1,0.00049315,30]
[358912804,1745544968880,-500.0,0.00049315,30]
[358912805,1745544968907,-702.4,0.00049315,30]
[358912806,1745544968934,-500.0,0.00049315,30]
[358912807,1745544968961,-500.0,0.00049315,30]
[358912808,1745544968987,-1226.82,0.00049315,30]
[358912809,1745544969016,-500.0,0.00049315,30]
[358912810,1745544969043,-514.73759623,0.00049315,30]
[358912811,1745544969071,-1538.93,0.00049315,30]
[358912812,1745544969100,-596.95,0.00049315,30]
[358912813,1745544969129,-500.0,0.00049315,30]
[358912814,1745544969159,-590.78,0.00049315,30]
[358912815,1745544969189,-500.0,0.00049315,30]
[358912816,1745544969219,-500.24,0.00049315,30]
[358912817,1745544969250,-2240.86,0.00049315,30]
[358912818,1745544969281,-500.0,0.00049315,30]
[358912819,1745544969310,-510.89,0.00049315,30]
[358912820,1745544969339,-500.0,0.00049315,30]
[358912821,1745544969366,-514.10320269,0.00049315,30]
[358912822,1745544969409,-500.0,0.00049315,30]
[358912823,1745544969444,-458.11843085,0.00049315,30]
[358912824,1745544969473,-500.0,0.00049315,30]
[358912825,1745544969502,-515.40865926,0.00049315,30]
[358912826,1745544969533,-848.12,0.00049315,30]
[358912827,1745544969562,-500.0,0.00049315,30]
[358912828,1745544969590,-500.0,0.00049315,30]
[358912829,1745544969621,-692.83,0.00049315,30]
[358912830,1745544969650,-500.0,0.00049315,30]
[358912831,1745544969680,-500.0,0.00049315,30]
[358912832,1745544969710,-879.68,0.00049315,30]
[358912833,1745544969738,-543.78511333,0.00049315,30]
[358912834,1745544969766,-500.0,0.00049315,30]
[358912835,1745544969796,-500.0,0.00049315,30]
[358912836,1745544969827,-500.0,0.00049315,30]
[358912837,1745544969859,-283.58868223,0.00049315,30]
[358912838,1745544969889,-552.82033604,0.00049315,30]
[358912839,1745544969917,-529.20558565,0.00049315,30]
[358912840,1745544969950,-500.0,0.00049315,30]
[358912841,1745544969980,-500.0,0.00049315,30]
[358912842,1745544970008,-500.0,0.00049315,30]
[358912843,1745544970038,-720.67,0.00049315,30]
[358912844,1745544970066,-500.0,0.00049315,30]
[358912845,1745544970095,-500.0,0.00049315,30]
[358912846,1745544970124,-500.0,0.00049315,30]
[358912847,1745544970152,-527.18983519,0.00049315,30]
[358912848,1745544970180,-582.42,0.00049315,30]
[358912849,1745544970208,-513.8728145,0.00049315,30]
[358912850,1745544970238,-841.5,0.00049315,30]
[358912851,1745544970265,-581.75,0.00049315,30]
[358912852,1745544970295,-500.0,0.00049315,30]
[358912853,1745544970325,-500.0,0.00049315,30]
[358912854,1745544970353,-1088.58,0.00049315,30]
[358912855,1745544970381,-500.0,0.00049315,30]
[358912856,1745544970410,-500.0,0.00049315,30]
[358912857,1745544970440,-2165.36,0.00049315,30]
[358912858,1745544970473,-500.0,0.00049315,30]
[358912859,1745544970505,-542.14184706,0.00049315,30]
[358912860,1745544970534,-500.0,0.00049315,30]
[358912861,1745544970561,-531.63611807,0.00049315,30]
[358912862,1745544970588,-520.63216261,0.00049315,30]
[358912863,1745544970615,-500.0,0.00049315,30]
[358912864,1745544970644,-500.0,0.00049315,30]
[358912865,1745544970672,-953.99,0.00049315,30]
[358912866,1745544970699,-570.74687239,0.00049315,30]
[358912867,1745544970726,-890.55,0.00049315,30]
[358912868,1745544971103,-500.0,0.00049315,30]
[358912869,1745544971134,-1518.52,0.00049315,30]
[358912870,1745544971163,-554.83322238,0.00049315,30]
[358912871,1745544971191,-500.0,0.00049315,30]
[358912872,1745544971217,-542.18079171,0.00049315,30]
[358912873,1745544971245,-500.0,0.00049315,30]
[358912874,1745544971272,-671.62,0.00049315,30]
[358912875,1745544971299,-516.05299493,0.00049315,30]
[358912876,1745544971326,-522.07,0.00049315,30]
[358912877,1745544971353,-500.0,0.00049315,30]
[358912878,1745544971380,-500.0,0.00049315,30]
[358912879,1745544971408,-500.0,0.00049315,30]
[358912880,1745544971435,-500.0,0.00049315,30]
[358912881,1745544971462,-500.0,0.00049315,30]
[358912882,1745544971489,-500.0,0.00049315,30]
[358912883,1745544971517,-523.01,0.00049315,30]
[358912884,1745544971544,-538.77,0.00049315,30]
[358912885,1745544971570,-501.39580698,0.00049315,30]
[358912886,1745544971596,-500.0,0.00049315,30]
[358912887,1745544971623,-1137.11,0.00049315,30]
[358912888,1745544971650,-1025.92,0.00049315,30]
[358912889,1745544971677,-513.60853679,0.00049315,30]
[358912890,1745544971704,-500.0,0.00049315,30]
[358912891,1745544971732,-509.38002167,0.00049315,30]
[358912892,1745544971759,-517.77169457,0.00049315,30]
[358912893,1745544971787,-530.96,0.00049315,30]
[358912894,1745544971819,-547.04450444,0.00049315,30]
[358912895,1745544971849,-727.07,0.00049315,30]
[358912896,1745544971879,-644.39,0.00049315,30]
[358912897,1745544971905,-500.0,0.00049315,30]
[358912898,1745544971933,-666.56,0.00049315,30]
[358912899,1745544971961,-539.0649378,0.00049315,30]
[358912900,1745544971988,-500.0,0.00049315,30]
[358912901,1745544972014,-500.0,0.00049315,30]
[358912902,1745544972043,-500.0,0.00049315,30]
[358912903,1745544972069,-500.0,0.00049315,30]
[358912904,1745544972100,-500.0,0.00049315,30]
[358912905,1745544972128,-1696.5,0.00049315,30]
[358912906,1745544972156,-543.02,0.00049315,30]
[358912907,1745544972184,-528.89931741,0.00049315,30]
[358912908,1745544972211,-500.0,0.00049315,30]
[358912909,1745544972237,-500.0,0.00049315,30]
[358912910,1745544972264,-500.0,0.00049315,30]
[358912911,1745544972292,-500.0,0.00049315,30]
[358912912,1745544972318,-500.0,0.00049315,30]
[358912913,1745544972344,-504.91,0.00049315,30]
[358912914,1745544972370,-1420.61,0.00049315,30]
[358912915,1745544972396,-500.0,0.00049315,30]
[358912916,1745544972423,-1476.76,0.00049315,30]
[358912917,1745544972447,-500.0,0.00049315,30]
[358912918,1745544972473,-500.0,0.00049315,30]
[358912919,1745544972499,-500.0,0.00049315,30]
[358912920,1745544972525,-649.75,0.00049315,30]
[358912921,1745544972552,-232.40919093,0.00049315,30]
[358912922,1745544972577,-500.0,0.00049315,30]
[358912923,1745544972604,-519.72557554,0.00049315,30]
[358912924,1745544972630,-530.5379704,0.00049315,30]
[358912925,1745544972656,-717.43,0.00049315,30]
[358912926,1745544972682,-500.0,0.00049315,30]
[358912927,1745544972708,-2109.27,0.00049315,30]
[358912928,1745544972734,-500.0,0.00049315,30]
[358912929,1745544972760,-634.13,0.00049315,30]
[358912930,1745544972786,-578.2590537,0.00049315,30]
[358912931,1745544972814,-500.0,0.00049315,30]
[358912932,1745544972841,-917.14,0.00049315,30]
[358912933,1745544972865,-500.0,0.00049315,30]
[358912934,1745544972894,-500.0,0.00049315,30]
[358912935,1745544972920,-1147.28,0.00049315,30]
[358912936,1745544972946,-1981.94,0.00049315,30]
[358912937,1745544972972,-588.14673195,0.00049315,30]
[358912938,1745544972997,-505.51,0.00049315,30]
[358912939,1745544973022,-606.78,0.00049315,30]
[358912940,1745544973048,-2036.61,0.00049315,30]
[358912941,1745544973074,-2000.0,0.00049315,30]
[358912942,1745544973099,-617.00095131,0.00049315,30]
[358912943,1745544973124,-500.0,0.00049315,30]
[358912944,1745544973150,-525.87877186,0.00049315,30]
[358912945,1745544973177,-505.1,0.00049315,30]
[358912946,1745544973203,-500.0,0.00049315,30]
[358912947,1745544973229,-512.38845895,0.00049315,30]
[358912948,1745544973254,-500.0,0.00049315,30]
[358912949,1745544973281,-523.09915341,0.00049315,30]
[358912950,1745544973308,-500.0,0.00049315,30]
[358912951,1745544973335,-500.0,0.00049315,30]
[358912952,1745544973361,-2004.56,0.00049315,30]
[358912953,1745544973387,-500.0,0.00049315,30]
[358912954,1745544973412,-540.6307516,0.00049315,30]
[358912955,1745544973437,-500.0,0.00049315,30]
[358912956,1745544973463,-540.58396671,0.00049315,30]
[358912957,1745544973489,-500.0,0.00049315,120]
[358912958,1745544973516,-595.29,0.00049315,30]
[358912959,1745544973544,-536.19783644,0.00049315,30]
[358912960,1745544973571,-792.47,0.00049315,30]
[358912961,1745544973598,-1236.02,0.00049315,30]
[358912962,1745544973625,-540.41899009,0.00049315,30]
[358912963,1745544973653,-500.0,0.00049315,30]
[358912964,1745544973679,-531.78816634,0.00049315,30]
[358912965,1745544973705,-551.67473382,0.00049315,30]
[358912966,1745544973730,-566.14657186,0.00049315,30]
[358912967,1745544973756,-532.14344148,0.00049315,30]
[358912968,1745544973782,-500.0,0.00049315,30]
[358912969,1745544973810,-500.0,0.00049315,30]
[358912970,1745544973836,-522.19530017,0.00049315,30]
[358912971,1745544973863,-500.0,0.00049315,30]
[358912972,1745544973892,-500.0,0.00049315,30]
[358912973,1745544973918,-500.0,0.00049315,30]
[358912974,1745544974146,-500.0,0.00049315,30]
[358912975,1745544974177,-500.0,0.00049315,30]
[358912976,1745544974205,-171.45692752,0.00049315,30]
[358912977,1745544974232,-500.0,0.00049315,30]
[358912978,1745544974258,-500.0,0.00049315,30]
[358912979,1745544974287,-500.0,0.00049315,30]
[358912980,1745544974314,-754.49,0.00049315,30]
[358912981,1745544974340,-543.78,0.00049315,30]
[358912982,1745544974370,-500.0,0.00049315,30]
[358912983,1745544974398,-307.03656511,0.00049315,30]
[358912984,1745544974425,-1033.94,0.00049315,30]
[358912985,1745544974451,-619.56,0.00049315,30]
[358912986,1745544974479,-500.0,0.00049315,30]
[358912987,1745544974504,-526.07223502,0.00049315,30]
[358912988,1745544974531,-1673.76,0.00049315,30]
[358912989,1745544974559,-1548.26,0.00049315,30]
[358912990,1745544974585,-500.0,0.00049315,30]
[358912991,1745544974612,-500.0,0.00049315,30]
[358912992,1745544974639,-565.95,0.00049315,30]
[358912993,1745544974666,-540.28,0.00049315,30]
[358912994,1745544974693,-500.0,0.00049315,30]
[358912995,1745544974719,-507.56027628,0.00049315,30]
[358912996,1745544974746,-500.0,0.00049315,30]
[358912997,1745544974773,-544.0,0.00049315,30]
[358912998,1745544974802,-500.0,0.00049315,30]
[358912999,1745544974830,-500.0,0.00049315,30]
[358913000,1745544974858,-500.0,0.00049315,30]
[358913001,1745544974885,-500.0,0.00049315,30]
[358913002,1745544974912,-500.0,0.00049315,30]
[358913003,1745544974937,-319.33694656,0.00049315,30]
[358913004,1745544974963,-522.56650213,0.00049315,30]
[358913005,1745544974989,-1041.66,0.00049315,30]
[358913006,1745544975016,-1495.9,0.00049315,30]
[358913007,1745544975042,-500.0,0.00049315,30]
[358913008,1745544975067,-500.0,0.00049315,30]
[358913009,1745544975092,-500.0,0.00049315,30]
[358913010,1745544975119,-500.0,0.00049315,30]
[358913011,1745544975144,-509.16183073,0.00049315,30]
[358913012,1745544975172,-500.0,0.00049315,30]
[358913013,1745544975199,-608.11,0.00049315,30]
[358913014,1745544975226,-500.0,0.00049315,30]
[358913015,1745544975252,-500.0,0.00049315,30]
[358913016,1745544975279,-500.0,0.00049315,30]
[358913017,1745544975309,-537.72,0.00049315,30]
[358913018,1745544975337,-1939.16,0.00049315,30]
[358913019,1745544975365,-351.00557983,0.00049315,30]
[358913020,1745544975391,-500.0,0.00049315,30]
[358913021,1745544975416,-500.0,0.00049315,30]
[358913022,1745544975442,-500.0,0.00049315,30]
[358913023,1745544975467,-500.0,0.00049315,30]
[358913024,1745544975492,-500.0,0.00049315,30]
[358913025,1745544975520,-1362.69,0.00049315,30]
[358913026,1745544975547,-1710.55,0.00049315,30]
[358913027,1745544975574,-500.0,0.00049315,30]
[358913028,1745544975600,-686.33,0.00049315,30]
[358913029,1745544975626,-500.0,0.00049315,30]
[358913030,1745544975652,-500.0,0.00049315,30]
[358913031,1745544975678,-561.38998113,0.00049315,30]
[358913032,1745544975705,-500.0,0.00049315,30]
[358913033,1745544975732,-1329.3,0.00049315,30]
[358913034,1745544975759,-500.0,0.00049315,30]
[358913035,1745544975786,-2072.41,0.00049315,30]
[358913036,1745544975816,-569.6,0.00049315,30]
[358913037,1745544975843,-243.15440788,0.00049315,30]
[358913038,1745544975869,-500.0,0.00049315,30]
[358913039,1745544975896,-1556.23,0.00049315,30]
[358913040,1745544975922,-500.0,0.00049315,30]
[358913041,1745544975947,-500.0,0.00049315,30]
[358913042,1745544975972,-500.0,0.00049315,30]
[358913043,1745544975998,-500.0,0.00049315,30]
[358913044,1745544976024,-713.78,0.00049315,30]
[358913045,1745544976051,-500.0,0.00049315,30]
[358913046,1745544976076,-500.0,0.00049315,30]
[358913047,1745544976102,-1454.62,0.00049315,30]
[358913048,1745544976128,-500.0,0.00049315,30]
[358913049,1745544976154,-560.21,0.00049315,30]
[358913050,1745544976181,-500.0,0.00049315,30]
[358913051,1745544976208,-500.0,0.00049315,30]
[358913052,1745544976236,-603.66122166,0.00049315,30]
[358913053,1745544976264,-500.0,0.00049315,30]
[358913054,1745544976291,-500.0,0.00049315,30]
[358913055,1745544976317,-500.0,0.00049315,30]
[358913056,1745544976344,-500.0,0.00049315,30]
[358913057,1745544976371,-518.8887096,0.00049315,30]
[358913058,1745544976397,-500.0,0.00049315,30]
[358913059,1745544976423,-500.0,0.00049315,30]
[358913060,1745544976451,-500.0,0.00049315,30]
[358913061,1745544976480,-500.0,0.00049315,30]
[358913062,1745544976508,-500.0,0.00049315,30]
[358913063,1745544976537,-508.93534895,0.00049315,30]
[358913064,1745544976564,-505.25082465,0.00049315,30]
[358913065,1745544976591,-518.2,0.00049315,30]
[358913066,1745544976617,-500.0,0.00049315,30]
[358913067,1745544976643,-505.35576827,0.00049315,30]
[358913068,1745544976669,-2274.26,0.00049315,30]
[358913069,1745544976695,-500.0,0.00049315,30]
[358913070,1745544976721,-500.0,0.00049315,30]
[358913071,1745544976748,-1417.1,0.00049315,30]
[358913072,1745544976774,-508.94125715,0.00049315,30]
[358913073,1745544976803,-500.0,0.00049315,30]
[358913074,1745544976829,-500.0,0.00049315,30]
[358913075,1745544976855,-500.0,0.00049315,30]
[358913076,1745544976882,-640.19,0.00049315,30]
[358913077,1745544976908,-1523.67,0.00049315,30]
[358913078,1745544976935,-500.0,0.00049315,30]
[358913079,1745544977183,-500.0,0.00049315,30]
[358913080,1745544977231,-500.0,0.00049315,30]
[358913081,1745544977257,-624.31,0.00049315,30]
[358913082,1745544977285,-500.0,0.00049315,30]
[358913083,1745544977311,-1349.12,0.00049315,30]
[358913084,1745544977336,-1073.85,0.00049315,30]
[358913085,1745544977364,-500.0,0.00049315,30]
[358913086,1745544977391,-500.0,0.00049315,30]
[358913087,1745544977416,-300.0,0.00049315,30]
[358913088,1745544977441,-500.0,0.00049315,30]
[358913089,1745544977468,-500.0,0.00049315,30]
[358913090,1745544977495,-529.21511513,0.00049315,30]
[358913091,1745544977520,-781.44,0.00049315,30]
[358913092,1745544977546,-417.58202554,0.00049315,30]
[358913093,1745544977573,-781.44,0.00049315,30]
[358913094,1745544977599,-500.0,0.00049315,30]
[358913095,1745544977625,-781.44,0.00049315,30]
[358913096,1745544977651,-766.4,0.00049315,30]
[358913097,1745544977679,-781.44,0.00049315,30]
[358913098,1745544977706,-781.44,0.00049315,30]
[358913099,1745544977734,-781.44,0.00049315,30]
[358913100,1745544977761,-500.0,0.00049315,30]
[358913101,1745544977789,-781.44,0.00049315,30]
[358913102,1745544977819,-781.44,0.00049315,30]
[358913103,1745544977845,-781.44,0.00049315,30]
[358913104,1745544977873,-500.0,0.00049315,30]
[358913105,1745544977899,-500.0,0.00049315,30]
[358913106,1745544977925,-517.20263337,0.00049315,30]
[358913107,1745544977950,-500.0,0.00049315,30]
[358913108,1745544977977,-542.53,0.00049315,30]
[358913109,1745544978007,-193.184795,0.00049315,30]
[358913110,1745544978038,-500.0,0.00049315,30]
[358913111,1745544978065,-781.44,0.00049315,30]
[358913112,1745544978092,-781.44,0.00049315,30]
[358913113,1745544978119,-657.49,0.00049315,30]
[358913114,1745544978147,-781.44,0.00049315,30]
[358913115,1745544978175,-781.44,0.00049315,30]
[358913116,1745544978202,-781.44,0.00049315,30]
[358913117,1745544978229,-781.44,0.00049315,30]
[358913118,1745544978257,-1692.22,0.00049315,30]
[358913119,1745544978285,-781.44,0.00049315,30]
[358913120,1745544978312,-781.44,0.00049315,30]
[358913121,1745544978340,-781.44,0.00049315,30]
[358913122,1745544978367,-781.44,0.00049315,30]
[358913123,1745544978393,-781.44,0.00049315,30]
[358913124,1745544978421,-781.44,0.00049315,30]
[358913125,1745544978449,-566.09991193,0.00049315,30]
[358913126,1745544978478,-500.0,0.00049315,30]
[358913127,1745544978507,-500.0,0.00049315,30]
[358913128,1745544978538,-500.0,0.00049315,30]
[358913129,1745544978568,-781.44,0.00049315,30]
[358913130,1745544978597,-781.44,0.00049315,30]
[358913131,1745544978627,-781.65655412,0.00049315,30]
[358913132,1745544978655,-500.0,0.00049315,30]
[358913133,1745544978684,-1140.56,0.00049315,30]
[358913134,1745544978712,-500.0,0.00049315,30]
[358913135,1745544978740,-644.02,0.00049315,30]
[358913136,1745544978768,-896.35,0.00049315,30]
[358913137,1745544978796,-500.0,0.00049315,30]
[358913138,1745544978826,-500.0,0.00049315,30]
[358913139,1745544978854,-500.0,0.00049315,30]
[358913140,1745544978882,-500.0,0.00049315,30]
[358913141,1745544978910,-500.0,0.00049315,30]
[358913142,1745544978936,-470.74523015,0.00049315,30]
[358913143,1745544978964,-500.0,0.00049315,30]
[358913144,1745544978992,-500.0,0.00049315,30]
[358913145,1745544979020,-1611.96,0.00049315,30]
[358913146,1745544979052,-500.0,0.00049315,30]
[358913147,1745544979079,-500.0,0.00049315,30]
[358913148,1745544979107,-500.0,0.00049315,30]
[358913149,1745544979134,-500.0,0.00049315,30]
[358913150,1745544979160,-500.0,0.00049315,30]
[358913151,1745544979187,-500.0,0.00049315,30]
[358913152,1745544979212,-500.0,0.00049315,30]
[358913153,1745544979238,-994.55,0.00049315,30]
[358913154,1745544979265,-500.0,0.00049315,30]
[358913155,1745544979292,-500.0,0.00049315,30]
[358913156,1745544979321,-500.0,0.00049315,30]
[358913157,1745544979350,-2099.49,0.00049315,30]
[358913158,1745544979377,-500.0,0.00049315,30]
[358913159,1745544979403,-500.0,0.00049315,30]
[358913160,1745544979429,-500.0,0.00049315,30]
[358913161,1745544979456,-542.37,0.00049315,30]
[358913162,1745544979483,-500.0,0.00049315,30]
[358913163,1745544979508,-500.0,0.00049315,30]
[358913164,1745544979537,-500.0,0.00049315,30]
[358913165,1745544979564,-500.0,0.00049315,30]
[358913166,1745544979591,-1610.96,0.00049315,30]
[358913167,1745544979618,-500.0,0.00049315,30]
[358913168,1745544979645,-2291.4,0.00049315,30]
[358913169,1745544979671,-594.93603749,0.00049315,30]
[358913170,1745544979697,-546.08,0.00049315,30]
[358913171,1745544979722,-534.62476483,0.00049315,30]
[358913172,1745544979748,-500.0,0.00049315,30]
[358913173,1745544979774,-500.0,0.00049315,30]
[358913174,1745544979804,-500.0,0.00049315,30]
[358913175,1745544979832,-2439.89,0.00049315,30]
[358913176,1745544979860,-500.0,0.00049315,30]
[358913177,1745544979889,-500.0,0.00049315,30]
[358913178,1745544979916,-500.0,0.00049315,30]
[358913179,1745544979944,-500.0,0.00049315,30]
[358913180,1745544979971,-500.0,0.00049315,30]
[358913181,1745544980000,-500.0,0.00049315,120]
[358913182,1745544980026,-500.0,0.00049315,120]
[358913183,1745544980054,-500.0,0.00049315,120]
[358913184,1745544980082,-500.0,0.00049315,30]
[358913185,1745544980372,-500.0,0.00049315,120]
[358913186,1745544980400,-500.0,0.00049315,120]
[358913187,1745544980428,-581.64628648,0.00049315,30]
[358913188,1745544980456,-500.0,0.00049315,120]
[358913189,1745544980485,-500.0,0.00049315,30]
[358913190,1745544980516,-584.43,0.00049315,30]
[358913191,1745544980544,-500.0,0.00049315,120]
[358913192,1745544980571,-616.53453618,0.00049315,120]
[358913193,1745544980600,-500.0,0.00049315,30]
[358913194,1745544980629,-570.55300334,0.00049315,30]
[358913195,1745544980658,-573.99910859,0.00049315,30]